bitfinex-derivatives/quotes_BTCF0:USTF0_20251002
["timestamp","ask_amount","ask_price","bid_price","bid_amount"]
[1759410108053,1.78131671,119460.0,119450.0,0.001]
[1759410108456,1.80244178,119460.0,119450.0,0.001]
[1759410108757,1.78131671,119460.0,119450.0,0.001]
[1759410109662,1.80244122,119460.0,119450.0,0.001]
[1759410109857,1.73402105,119460.0,119450.0,0.001]
[1759410110364,1.73391379,119460.0,119450.0,0.001]
[1759410110764,0.97663379,119460.0,119450.0,0.001]
[1759410111069,1.73391379,119460.0,119450.0,0.001]
[1759410111953,0.97663379,119460.0,119450.0,0.001]
[1759410112160,1.22291691,119460.0,119450.0,0.03697]
[1759410112466,1.80099556,119460.0,119450.0,0.03697]
[1759410112665,1.04371556,119460.0,119450.0,0.03697]
[1759410112964,1.80099556,119460.0,119450.0,0.01369]
[1759410113160,1.77987105,119460.0,119450.0,0.01269]
[1759410113361,1.77987105,119460.0,119450.0,0.01469]
[1759410113566,1.77987105,119460.0,119450.0,0.004]
[1759410113963,1.77987105,119460.0,119450.0,0.002]
[1759410114166,0.0836758,119450.0,119440.0,0.09549489]
[1759410114358,0.0836828,119440.0,119430.0,0.51690049]
[1759410114665,1.09646124,119440.0,119430.0,0.79567893]
[1759410114962,1.35195968,119440.0,119430.0,0.54018049]
[1759410115162,0.8409628,119440.0,119430.0,0.54018049]
[1759410115366,1.09646124,119440.0,119430.0,0.54018049]
[1759410115966,1.09646124,119440.0,119430.0,0.79567893]
[1759410116167,0.8409628,119440.0,119430.0,0.45649489]
[1759410116359,0.8409628,119440.0,119430.0,0.54018469]
[1759410116360,0.59467968,119440.0,119430.0,0.54018469]
[1759410116563,1.35195968,119440.0,119430.0,0.94018469]
[1759410116765,1.09646124,119440.0,119430.0,1.19568313]
[1759410117165,1.09646124,119440.0,119430.0,1.20868313]
[1759410117364,0.33918124,119440.0,119430.0,1.20868313]
[1759410117566,1.09646124,119440.0,119430.0,1.20868313]
[1759410117762,1.09646124,119440.0,119430.0,1.19568313]
[1759410117967,1.09646124,119440.0,119430.0,1.20268313]
[1759410118167,0.8409628,119440.0,119430.0,1.20268313]
[1759410118364,1.09646124,119440.0,119430.0,0.94718469]
[1759410118675,1.09646124,119440.0,119430.0,1.14315824]
[1759410119870,1.09646124,119440.0,119430.0,0.8876598]
[1759410120070,1.09646124,119440.0,119430.0,1.14315824]
[1759410120374,0.0836819,119450.0,119440.0,0.03597]
[1759410120571,0.33918034,119450.0,119440.0,0.29146844]
[1759410120772,1.09646034,119450.0,119440.0,0.73595054]
[1759410121273,1.09646034,119450.0,119440.0,0.37515054]
[1759410121574,0.33918034,119450.0,119440.0,0.4814521]
[1759410121773,1.09646034,119450.0,119440.0,0.73695054]
[1759410121972,0.33918034,119450.0,119440.0,0.73695054]
[1759410122175,1.09646034,119450.0,119440.0,0.29246844]
[1759410122566,1.09646034,119450.0,119440.0,0.03697]
[1759410122870,0.8409619,119450.0,119440.0,0.03697]
[1759410123066,1.09646034,119450.0,119440.0,0.03697]
[1759410123269,0.8409619,119450.0,119440.0,0.03697]
[1759410123467,1.09646034,119450.0,119440.0,0.03697]
[1759410124273,1.09646034,119450.0,119440.0,0.1206522]
[1759410124772,1.09646034,119450.0,119440.0,0.73695064]
[1759410124974,0.8409619,119450.0,119440.0,0.73695064]
[1759410125175,1.09646034,119450.0,119440.0,0.73695064]
[1759410125562,1.09646034,119450.0,119440.0,0.39777]
[1759410127175,1.52693381,119450.0,119440.0,0.03697]
[1759410127572,1.2017619,119450.0,119440.0,0.03697]
[1759410127775,1.52693381,119450.0,119440.0,0.03697]
[1759410131678,1.85210572,119450.0,119440.0,0.001]
[1759410132081,1.09482572,119450.0,119440.0,0.001]
[1759410132276,1.85206572,119450.0,119440.0,0.001]
[1759410132479,1.2017219,119450.0,119440.0,0.001]
[1759410132680,1.85206572,119450.0,119440.0,0.001]
[1759410132881,1.87321569,119450.0,119440.0,0.001]
[1759410133074,1.52689381,119450.0,119440.0,0.001]
[1759410133985,0.76965381,119450.0,119440.0,0.03697]
[1759410134182,1.16609381,119450.0,119440.0,0.03697]
[1759410134382,1.16609381,119450.0,119440.0,0.44582531]
[1759410134578,1.52689381,119450.0,119440.0,0.03697]
[1759410134882,1.16609381,119450.0,119440.0,0.03697]
[1759410135183,0.40885381,119450.0,119440.0,0.03697]
[1759410135484,1.16609381,119450.0,119440.0,0.03697]
[1759410138177,1.16609381,119450.0,119440.0,0.01369]
[1759410138383,1.52689381,119450.0,119440.0,0.01369]
[1759410139987,1.2017219,119450.0,119440.0,0.01369]
[1759410140187,1.2017219,119450.0,119440.0,0.035]
[1759410140388,1.52689381,119450.0,119440.0,0.035]
[1759410140688,1.52689381,119450.0,119440.0,0.01369]
[1759410141790,1.52689381,119450.0,119440.0,0.001]
[1759410142687,1.2017219,119450.0,119440.0,0.001]
[1759410142980,2.25206572,119450.0,119440.0,0.001]
[1759410143377,1.62273838,119450.0,119440.0,0.001]
[1759410143580,2.2730822,119450.0,119440.0,0.001]
[1759410144484,1.62273838,119450.0,119440.0,0.001]
[1759410144680,2.2730822,119450.0,119440.0,0.001]
[1759410145794,1.5158422,119450.0,119440.0,0.001]
[1759410145985,2.2730422,119450.0,119440.0,0.001]
[1759410146992,1.5158422,119450.0,119440.0,0.001]
[1759410147196,2.2730422,119450.0,119440.0,0.001]
[1759410151595,0.0836904,119430.0,119420.0,0.01399]
[1759410151896,0.0836974,119420.0,119410.0,0.53969869]
[1759410152098,0.40886931,119420.0,119410.0,0.53969869]
[1759410152300,1.23281203,119420.0,119410.0,0.8648706]
[1759410152891,1.16606931,119420.0,119410.0,0.53969869]
[1759410153088,1.16606931,119420.0,119410.0,0.8648706]
[1759410153494,0.8408974,119420.0,119410.0,0.53969869]
[1759410153696,1.16606931,119420.0,119410.0,0.8648706]
[1759410154499,1.16606931,119420.0,119410.0,0.54969869]
[1759410154702,1.17486288,119420.0,119410.0,0.8828706]
[1759410154899,0.09249097,119420.0,119410.0,0.55769869]
[1759410155099,1.11898288,119420.0,119410.0,0.55769869]
[1759410155288,1.11898288,119420.0,119410.0,0.47399489]
[1759410155496,1.44415479,119420.0,119410.0,0.47399489]
[1759410155800,1.11898288,119420.0,119410.0,0.47399489]
[1759410156790,1.17490288,119420.0,119410.0,0.47399489]
[1759410156995,0.09249097,119420.0,119410.0,0.73964191]
[1759410157196,1.17490288,119420.0,119410.0,0.55769909]
[1759410157495,1.17490288,119420.0,119410.0,0.882871]
[1759410157806,1.2414782,119420.0,119410.0,0.82334611]
[1759410158300,1.2414782,119420.0,119410.0,0.37884191]
[1759410158507,1.2414782,119420.0,119410.0,0.05367]
[1759410158697,1.2414782,119420.0,119410.0,0.37884191]
[1759410159102,1.2414782,119420.0,119410.0,0.05367]
[1759410159301,0.15027272,119420.0,119410.0,0.46254621]
[1759410159500,0.90751272,119420.0,119410.0,0.82334621]
[1759410159702,1.24169994,119420.0,119410.0,0.73964191]
[1759410160002,0.91652803,119420.0,119410.0,0.7991668]
[1759410160202,1.24169994,119420.0,119410.0,0.882871]
[1759410160505,1.24169994,119420.0,119410.0,0.47399489]
[1759410160702,1.24169994,119420.0,119410.0,0.882871]
[1759410160997,0.91652803,119420.0,119410.0,0.82334611]
[1759410161301,0.15027252,119420.0,119410.0,1.22334611]
[1759410161602,0.87431252,119420.0,119410.0,1.1991668]
[1759410161903,1.19948443,119420.0,119410.0,0.8828709]
[1759410162204,1.20828502,119420.0,119410.0,0.47399489]
[1759410162404,1.20828502,119420.0,119410.0,0.41447]
[1759410162599,1.20832502,119420.0,119410.0,0.73964191]
[1759410163202,1.20832502,119420.0,119410.0,0.41447]
[1759410163403,1.20832502,119420.0,119410.0,0.82334571]
[1759410163804,1.20832502,119420.0,119410.0,0.41447]
[1759410164005,1.20832502,119420.0,119410.0,0.73964191]
[1759410165205,1.20832502,119420.0,119410.0,0.82334581]
[1759410165507,1.20832502,119420.0,119410.0,0.4981739]
[1759410166105,1.20832502,119420.0,119410.0,0.82334581]
[1759410166302,1.53349693,119420.0,119410.0,0.05367]
[1759410166507,1.88069092,119420.0,119410.0,0.018]
[1759410168504,1.2303471,119420.0,119410.0,0.018]
[1759410168704,1.88069092,119420.0,119410.0,0.018]
[1759410169002,1.2303471,119420.0,119410.0,0.018]
[1759410169208,1.88069092,119420.0,119410.0,0.018]
[1759410170210,1.55571699,119420.0,119410.0,0.018]
[1759410170503,1.2303471,119420.0,119410.0,0.018]
[1759410170709,1.55571699,119420.0,119410.0,0.018]
[1759410175610,1.55571699,119420.0,119410.0,0.05467]
[1759410175814,1.55571699,119420.0,119410.0,0.03177]
[1759410177209,0.83167699,119420.0,119410.0,0.05467]
[1759410177517,1.2635871,119420.0,119410.0,0.05467]
[1759410177813,1.58895699,119420.0,119410.0,0.05467]
[1759410178315,1.58895699,119420.0,119410.0,0.03177]
[1759410181121,1.58895699,119420.0,119410.0,0.018]
[1759410184423,1.98895699,119420.0,119410.0,0.018]
[1759410184719,1.6635871,119420.0,119410.0,0.018]
[1759410184925,1.98895699,119420.0,119410.0,0.018]
[1759410189335,1.98895699,119420.0,119390.0,0.05952489]
[1759410189336,0.08371,119400.0,119390.0,0.05952489]
[1759410189533,1.47812122,119400.0,119390.0,0.05952489]
[1759410189733,0.083717,119390.0,119380.0,0.45685813]
[1759410189939,0.40908689,119390.0,119380.0,0.45685813]
[1759410191237,0.40908689,119390.0,119380.0,0.47585813]
[1759410192140,0.40908689,119390.0,119380.0,0.41633324]
[1759410192940,0.40908689,119390.0,119380.0,0.50805744]
[1759410193538,0.40908689,119390.0,119380.0,0.42433324]
[1759410194342,0.083717,119390.0,119380.0,0.42433324]
[1759410194544,0.40908689,119390.0,119380.0,0.42433324]
[1759410195633,0.40908689,119390.0,119380.0,0.06353324]
[1759410198849,0.40908689,119390.0,119380.0,0.12305813]
[1759410199545,0.39547689,119390.0,119380.0,0.12305813]
[1759410199844,0.39547689,119390.0,119380.0,0.06353324]
[1759410200050,0.39547689,119390.0,119380.0,0.04063324]
[1759410201051,0.39547689,119390.0,119380.0,0.06199324]
[1759410201444,0.75627689,119390.0,119380.0,0.04063324]
[1759410201845,1.15627689,119390.0,119380.0,0.02710324]
[1759410202645,1.15627689,119390.0,119380.0,0.00510324]
[1759410203151,1.15627689,119390.0,119380.0,0.01210324]
[1759410203854,1.91363689,119390.0,119380.0,0.01210324]
[1759410204749,1.15627689,119390.0,119380.0,0.01210324]
[1759410204947,1.91363689,119390.0,119380.0,0.01210324]
[1759410206053,1.15627689,119390.0,119380.0,0.01210324]
[1759410206650,1.91363689,119390.0,119380.0,0.01210324]
[1759410206854,1.51363689,119390.0,119380.0,0.04680324]
[1759410207052,1.188267,119390.0,119380.0,0.04680324]
[1759410207252,1.51363689,119390.0,119380.0,0.04680324]
[1759410211857,0.75627689,119390.0,119380.0,0.04680324]
[1759410212157,1.51367689,119390.0,119380.0,0.04680324]
[1759410212952,0.75627689,119390.0,119380.0,0.04680324]
[1759410213150,1.51367689,119390.0,119380.0,0.04680324]
[1759410214655,0.75627689,119390.0,119380.0,0.04680324]
[1759410214857,1.51367689,119390.0,119380.0,0.04680324]
[1759410216948,1.188307,119390.0,119380.0,0.04680324]
[1759410217153,1.51367689,119390.0,119380.0,0.04680324]
[1759410221263,0.430907,119390.0,119380.0,0.04680324]
[1759410221566,0.8138963,119390.0,119380.0,0.04680324]
[1759410221758,1.13926619,119390.0,119380.0,0.04680324]
[1759410221960,0.083717,119390.0,119380.0,0.81669703]
[1759410222268,0.841117,119390.0,119380.0,1.21669703]
[1759410222763,0.841117,119390.0,119380.0,0.89132714]
[1759410223667,0.0837163,119400.0,119390.0,0.118737]
[1759410223854,0.8410763,119400.0,119390.0,0.118737]
[1759410224465,0.8410763,119400.0,119390.0,0.479537]
[1759410224864,0.8410763,119400.0,119390.0,0.481537]
[1759410225964,0.0837163,119400.0,119390.0,0.481537]
[1759410226163,0.8410763,119400.0,119390.0,0.483537]
[1759410228070,0.8410363,119400.0,119390.0,0.483537]
[1759410230671,1.16640619,119400.0,119390.0,0.483537]
[1759410231267,0.0837163,119400.0,119390.0,0.483537]
[1759410231467,0.8410363,119400.0,119390.0,0.483537]
[1759410231672,0.82742754,119400.0,119390.0,0.54306189]
[1759410232272,1.15280238,119400.0,119390.0,0.86843673]
[1759410232466,0.82742754,119400.0,119390.0,0.86843673]
[1759410232672,1.15280238,119400.0,119390.0,0.86843673]
[1759410234263,1.47817722,119400.0,119390.0,0.45934489]
[1759410234465,1.83897722,119400.0,119390.0,0.01734]
[1759410234773,1.47817722,119400.0,119390.0,0.03891]
[1759410236880,1.83897722,119400.0,119390.0,0.03891]
[1759410237678,1.47817722,119400.0,119390.0,0.03891]
[1759410237876,1.47817722,119400.0,119390.0,0.122627]
[1759410238977,1.47817722,119400.0,119390.0,0.03891]
[1759410240183,0.82742754,119400.0,119390.0,0.03891]
[1759410240382,1.47817722,119400.0,119390.0,0.03891]
[1759410241270,1.47817722,119400.0,119390.0,0.122627]
[1759410241783,1.47817722,119400.0,119390.0,0.483427]
[1759410242384,1.47817722,119400.0,119390.0,0.03891]
[1759410243184,1.46448808,119400.0,119390.0,0.03891]
[1759410243588,1.46448808,119400.0,119390.0,0.004]
[1759410243589,1.1745384,119400.0,119390.0,0.004]
[1759410243891,2.55066292,119400.0,119390.0,0.004]
[1759410244288,2.22528808,119400.0,119390.0,0.004]
[1759410245984,2.55066292,119400.0,119390.0,0.004]
[1759410246491,2.22528808,119400.0,119390.0,0.004]
[1759410246691,2.55066292,119400.0,119390.0,0.004]
[1759410250888,2.57160691,119400.0,119390.0,0.004]
[1759410251791,1.81436691,119400.0,119390.0,0.004]
[1759410251992,0.0837193,119390.0,119380.0,0.03501324]
[1759410252193,1.52713414,119390.0,119380.0,0.36038808]
[1759410252392,1.52713414,119390.0,119380.0,0.03501324]
[1759410253391,1.53913414,119390.0,119380.0,0.03501324]
[1759410258296,1.86450898,119390.0,119380.0,0.01344324]
[1759410258897,1.8508981,119390.0,119380.0,0.01344324]
[1759410259996,1.8508981,119390.0,119380.0,0.00010324]
[1759410265401,1.0936581,119390.0,119380.0,0.00010324]
[1759410265603,1.8509381,119390.0,119380.0,0.01277324]
[1759410268309,1.8509381,119390.0,119380.0,0.00010324]
[1759410268509,1.87206663,119390.0,119380.0,0.00010324]
[1759410268908,1.8509381,119390.0,119380.0,0.00010324]
[1759410269999,0.44290842,119390.0,119380.0,0.03585324]
[1759410270205,0.44290842,119390.0,119380.0,0.00010324]
[1759410270206,1.8509381,119390.0,119380.0,0.00010324]
[1759410271308,1.87207029,119390.0,119380.0,0.00010324]
[1759410272012,1.8509381,119390.0,119380.0,0.00010324]
[1759410273305,1.0936581,119390.0,119380.0,0.00010324]
[1759410273512,1.87207798,119390.0,119380.0,0.00010324]
[1759410273806,1.2213283,119390.0,119380.0,0.00010324]
[1759410274007,1.87207798,119390.0,119380.0,0.00010324]
[1759410274611,1.2213283,119390.0,119380.0,0.00010324]
[1759410274811,1.87207798,119390.0,119380.0,0.00010324]
[1759410277111,1.2213283,119390.0,119380.0,0.00010324]
[1759410277316,1.87207798,119390.0,119380.0,0.01277324]
[1759410277613,1.87207798,119390.0,119380.0,0.00010324]
[1759410278713,0.4640483,119390.0,119380.0,0.00010324]
[1759410279016,0.4640483,119390.0,119380.0,0.01277324]
[1759410279017,1.87207798,119390.0,119380.0,0.01277324]
[1759410279222,0.4640483,119390.0,119380.0,0.01277324]
[1759410279414,1.87207798,119390.0,119380.0,0.00010324]
[1759410281110,1.87207798,119390.0,119380.0,0.01277324]
[1759410283018,1.11479798,119390.0,119380.0,0.01277324]
[1759410283217,1.87207798,119390.0,119380.0,0.01277324]
[1759410283413,1.11479798,119390.0,119380.0,0.01277324]
[1759410283616,1.87207798,119390.0,119380.0,0.01277324]
[1759410284713,1.54670314,119390.0,119380.0,0.01277324]
[1759410284913,1.87207798,119390.0,119380.0,0.01277324]
[1759410286416,1.11479798,119390.0,119380.0,0.01277324]
[1759410286614,1.87207798,119390.0,119380.0,0.01277324]
[1759410287012,1.87207798,119390.0,119380.0,0.00010324]
[1759410289221,1.87207798,119390.0,119380.0,0.01342324]
[1759410289521,1.87207798,119390.0,119380.0,0.00010324]
[1759410293328,1.87207798,119390.0,119380.0,0.01342324]
[1759410293828,1.87207798,119390.0,119380.0,0.00010324]
[1759410294225,1.54692461,119390.0,119380.0,0.00010324]
[1759410295132,1.54692461,119390.0,119370.0,0.01377]
[1759410295330,0.77012241,119380.0,119370.0,0.01377]
[1759410295526,0.79126229,119380.0,119370.0,0.01377]
[1759410295729,0.77012241,119380.0,119370.0,0.01377]
[1759410295932,0.79143327,119380.0,119370.0,0.01377]
[1759410296133,0.79153534,119380.0,119370.0,0.01377]
[1759410296334,0.79153534,119380.0,119370.0,0.01577]
[1759410296729,1.54877534,119380.0,119370.0,0.04271]
[1759410296923,1.51385223,119380.0,119370.0,0.04071]
[1759410297133,1.51385223,119380.0,119370.0,0.03871]
[1759410297433,0.75661223,119380.0,119370.0,0.03871]
[1759410297629,1.51385223,119380.0,119370.0,0.002]
[1759410297830,1.53516235,119380.0,119370.0,0.002]
[1759410298939,1.53516235,119380.0,119370.0,0.03826]
[1759410299436,1.53516235,119380.0,119370.0,0.01532]
[1759410299744,1.53516235,119380.0,119350.0,0.07216489]
[1759410299745,0.0837401,119360.0,119350.0,0.07216489]
[1759410300039,0.0837471,119350.0,119340.0,0.09578489]
[1759410300245,0.40940365,119350.0,119340.0,0.09578489]
[1759410300939,1.09579996,119350.0,119340.0,0.05952489]
[1759410301140,0.0837611,119330.0,119320.0,0.14777326]
[1759410301340,1.16659741,119330.0,119320.0,0.01338265]
[1759410302339,1.17530954,119330.0,119320.0,0.01338265]
[1759410302543,1.17530954,119330.0,119320.0,6.265e-05]
[1759410302845,1.17530954,119330.0,119320.0,0.01806265]
[1759410303143,1.17534954,119330.0,119320.0,0.01806265]
[1759410303345,1.17534954,119330.0,119320.0,0.03306265]
[1759410303939,1.17538954,119330.0,119320.0,0.06932265]
[1759410304445,0.41806954,119330.0,119320.0,0.06932265]
[1759410305047,1.17538954,119330.0,119320.0,0.06932265]
[1759410305348,0.41806954,119330.0,119320.0,0.06932265]
[1759410305646,1.17538954,119330.0,119320.0,0.06932265]
[1759410306346,1.24386396,119330.0,119320.0,0.06932265]
[1759410307047,0.48650396,119330.0,119320.0,0.06932265]
[1759410307247,1.24386396,119330.0,119320.0,0.06932265]
[1759410308045,0.48650396,119330.0,119320.0,0.06932265]
[1759410308345,1.24390396,119330.0,119320.0,0.06932265]
[1759410308948,0.48650396,119330.0,119320.0,0.06932265]
[1759410309145,1.24390396,119330.0,119320.0,0.06932265]
[1759410309346,0.48650396,119330.0,119320.0,0.06932265]
[1759410309647,1.60470396,119330.0,119320.0,0.06932265]
[1759410312050,1.60474396,119330.0,119320.0,0.06932265]
[1759410312448,1.60474396,119330.0,119320.0,0.04638265]
[1759410315149,1.60474396,119330.0,119320.0,6.265e-05]
[1759410315352,1.60474396,119330.0,119320.0,0.00406265]
[1759410315753,1.60474396,119330.0,119320.0,6.265e-05]
[1759410316052,1.60474396,119330.0,119320.0,0.00606265]
[1759410316253,1.60483073,119330.0,119320.0,0.00606265]
[1759410318948,0.0837747,119310.0,119300.0,0.01332]
[1759410319151,1.49244732,119310.0,119300.0,0.03639]
[1759410319557,1.16685101,119310.0,119300.0,0.03639]
[1759410319955,1.49244732,119310.0,119300.0,0.03639]
[1759410320157,1.85324732,119310.0,119300.0,0.04839]
[1759410320959,1.52765101,119310.0,119300.0,0.04839]
[1759410321154,1.2020547,119310.0,119300.0,0.02532]
[1759410321360,1.2020547,119310.0,119300.0,0.012]
[1759410321361,1.85332576,119310.0,119300.0,0.012]
[1759410321559,0.0837887,119290.0,119280.0,0.03639]
[1759410321862,1.18848686,119290.0,119280.0,0.03639]
[1759410322054,1.51408317,119290.0,119280.0,0.03639]
[1759410322857,1.51408317,119290.0,119280.0,0.06139]
[1759410323056,1.51412317,119290.0,119280.0,0.06093]
[1759410323252,0.75656317,119290.0,119280.0,0.025]
[1759410323460,1.51412317,119290.0,119280.0,0.025]
[1759410323658,1.51412317,119290.0,119280.0,0.03794]
[1759410323963,1.18852686,119290.0,119280.0,0.03794]
[1759410324165,1.58145465,119290.0,119280.0,0.06055]
[1759410324363,1.58145465,119290.0,119280.0,0.1443457]
[1759410324364,0.06733148,119290.0,119280.0,0.1443457]
[1759410324572,1.16694501,119290.0,119280.0,0.5051457]
[1759410324760,0.8413487,119290.0,119280.0,0.5051457]
[1759410324961,0.40938501,119290.0,119280.0,0.5051457]
[1759410325268,1.16694501,119290.0,119280.0,0.5051457]
[1759410325466,0.8413487,119290.0,119280.0,0.42135]
[1759410325670,1.16694501,119290.0,119280.0,0.06055]
[1759410326165,0.40938501,119290.0,119280.0,0.06055]
[1759410326367,1.16698501,119290.0,119280.0,0.06055]
[1759410328072,0.40938501,119290.0,119280.0,0.1443457]
[1759410328261,1.16702501,119290.0,119280.0,0.1443457]
[1759410328760,1.23464466,119290.0,119280.0,0.06055]
[1759410329162,1.23464466,119290.0,119280.0,0.025]
[1759410329163,1.59544466,119290.0,119280.0,0.025]
[1759410329364,1.92104097,119290.0,119280.0,0.025]
[1759410329666,1.29118203,119290.0,119280.0,0.025]
[1759410329869,3.31669834,119290.0,119280.0,0.06055]
[1759410330366,3.31669834,119290.0,119280.0,0.01294]
[1759410330568,0.85913834,119290.0,119280.0,0.04455]
[1759410330770,1.61677834,119290.0,119280.0,0.04455]
[1759410331072,1.61677834,119290.0,119280.0,0.03555]
[1759410331273,1.61677834,119290.0,119280.0,0.04255]
[1759410332382,0.53354203,119290.0,119280.0,0.04255]
[1759410332575,0.85913834,119290.0,119280.0,0.04255]
[1759410332774,1.61681834,119290.0,119280.0,0.04255]
[1759410333379,1.60319531,119290.0,119280.0,0.04255]
[1759410334881,0.84551531,119290.0,119280.0,0.04255]
[1759410335179,1.60323531,119290.0,119280.0,0.04255]
[1759410335474,0.519919,119290.0,119280.0,0.04255]
[1759410335673,0.519919,119290.0,119280.0,1.21274201]
[1759410335674,0.1378762,119290.0,119280.0,1.21274201]
[1759410335879,0.08387948,119290.0,119280.0,1.21274201]
[1759410336081,0.84159948,119290.0,119280.0,1.21274201]
[1759410336279,9.088e-05,119290.0,119280.0,1.21274201]
[1759410336577,0.4445801,119310.0,119300.0,0.03555]
[1759410336780,0.5606201,119310.0,119300.0,0.1193316]
[1759410337483,0.0837801,119310.0,119300.0,0.4801316]
[1759410337681,0.0837801,119310.0,119300.0,1.20572791]
[1759410337682,0.84161823,119310.0,119300.0,1.20572791]
[1759410337875,0.84161823,119310.0,119300.0,1.20671881]
[1759410338071,7.813e-05,119310.0,119300.0,1.20671881]
[1759410338288,0.75787813,119310.0,119300.0,1.20671881]
[1759410338685,0.84164353,119310.0,119300.0,1.12194631]
[1759410338881,0.08384353,119310.0,119300.0,1.20871881]
[1759410339684,0.08384353,119310.0,119300.0,0.80871881]
[1759410340681,0.15218822,119330.0,119300.0,1.45054262]
[1759410340891,0.15218822,119330.0,119320.0,0.72194631]
[1759410341188,0.90994822,119330.0,119320.0,0.39635]
[1759410341383,0.90994822,119330.0,119320.0,0.72194631]
[1759410341589,0.90994822,119330.0,119320.0,0.39635]
[1759410341792,1.23630453,119330.0,119320.0,0.39635]
[1759410342586,1.23626453,119330.0,119320.0,0.39635]
[1759410342983,1.23926453,119330.0,119320.0,0.39635]
[1759410343183,0.91366822,119330.0,119320.0,0.39635]
[1759410343490,1.23626453,119330.0,119320.0,0.39635]
[1759410344589,1.16783011,119330.0,119320.0,0.39635]
[1759410344789,0.8422338,119330.0,119320.0,0.39635]
[1759410344991,1.16783011,119330.0,119320.0,0.39635]
[1759410345292,1.17283011,119330.0,119320.0,0.39635]
[1759410347989,1.17283011,119330.0,119320.0,0.03555]
[1759410348191,1.17283011,119330.0,119320.0,0.01294]
[1759410349894,1.52001287,119330.0,119320.0,0.01294]
[1759410351591,0.83341656,119330.0,119320.0,0.4797169]
[1759410351900,1.15897287,119330.0,119320.0,0.4797169]
[1759410352400,0.83337656,119330.0,119320.0,0.4797169]
[1759410353100,0.07513656,119330.0,119320.0,0.4797169]
[1759410353300,0.83337656,119330.0,119320.0,0.4797169]
[1759410356308,1.15917521,119330.0,119320.0,0.39595]
[1759410356489,1.51997521,119330.0,119320.0,0.03515]
[1759410357601,1.19417656,119330.0,119320.0,0.03515]
[1759410357801,1.51997521,119330.0,119320.0,0.03515]
[1759410358398,1.51997521,119330.0,119320.0,0.01294]
[1759410359003,1.51997521,119330.0,119320.0,0.03515]
[1759410366915,1.51997521,119330.0,119320.0,0.01294]
[1759410367208,1.51997521,119330.0,119310.0,0.45547489]
[1759410367209,0.07014952,119320.0,119310.0,0.45547489]
[1759410367508,0.72174682,119320.0,119310.0,0.09467489]
[1759410368109,0.72174682,119320.0,119310.0,0.03515]
[1759410368306,0.72174682,119320.0,119310.0,0.01294]
[1759410368807,0.72374682,119320.0,119310.0,0.01294]
[1759410369109,1.08454682,119320.0,119310.0,0.01294]
[1759410370910,1.08454682,119320.0,119310.0,0.03515]
[1759410371404,1.84242682,119320.0,119310.0,0.03515]
[1759410371805,1.08454682,119320.0,119310.0,0.03515]
[1759410371999,1.19078952,119320.0,119310.0,0.1189238]
[1759410372206,1.84238682,119320.0,119310.0,0.1189238]
[1759410373109,1.84238682,119320.0,119310.0,0.03515]
[1759410373501,1.08454682,119320.0,119310.0,0.1189239]
[1759410373807,1.84238682,119320.0,119310.0,0.1189239]
[1759410374810,1.84238682,119320.0,119310.0,0.03515]
[1759410375705,1.19078952,119320.0,119310.0,0.03515]
[1759410375905,1.84238682,119320.0,119310.0,0.03515]
[1759410378716,1.08454682,119320.0,119310.0,0.03515]
[1759410379012,0.72374682,119320.0,119310.0,0.03515]
[1759410379317,1.48142682,119320.0,119310.0,0.03515]
[1759410379509,0.71012854,119320.0,119310.0,0.03515]
[1759410379706,1.82856854,119320.0,119310.0,0.03515]
[1759410380313,0.0837809,119300.0,119290.0,0.45652489]
[1759410380512,0.7353782,119300.0,119290.0,0.4807879]
[1759410380707,1.4932182,119300.0,119290.0,0.4807879]
[1759410381623,1.4932182,119300.0,119290.0,0.1239879]
[1759410381911,1.4931782,119300.0,119290.0,0.4847879]
[1759410382118,1.4931782,119300.0,119290.0,0.81258655]
[1759410382419,1.16737955,119300.0,119290.0,0.81258655]
[1759410382616,1.23378058,119300.0,119290.0,0.81258655]
[1759410382814,1.23378058,119300.0,119290.0,0.4867879]
[1759410383022,1.23378058,119300.0,119290.0,0.81258655]
[1759410383622,1.23378058,119300.0,119290.0,0.4867879]
[1759410383820,1.55957923,119300.0,119290.0,0.4867879]
[1759410385409,0.71799833,119300.0,119290.0,0.4867879]
[1759410385617,0.82412103,119300.0,119290.0,0.4867879]
[1759410385816,0.71799833,119300.0,119290.0,0.4807879]
[1759410386015,1.47571833,119300.0,119290.0,0.4837879]
[1759410386216,1.47571833,119300.0,119290.0,0.1229879]
[1759410386722,1.47571833,119300.0,119290.0,0.1209879]
[1759410388823,1.47567833,119300.0,119290.0,0.4817879]
[1759410389014,1.47567833,119300.0,119290.0,0.1209879]
[1759410389316,0.82408103,119300.0,119290.0,0.1209879]
[1759410389518,1.46205802,119300.0,119290.0,0.1209879]
[1759410389821,1.54583852,119300.0,119290.0,0.1209879]
[1759410391024,0.78815852,119300.0,119290.0,0.1209879]
[1759410391222,1.54587852,119300.0,119290.0,0.1209879]
[1759410391623,0.70437802,119300.0,119290.0,0.4817879]
[1759410391820,0.81050072,119300.0,119290.0,0.80758655]
[1759410392021,1.13629937,119300.0,119290.0,0.80758655]
[1759410392435,0.81050072,119300.0,119290.0,0.4817879]
[1759410392619,1.13629937,119300.0,119290.0,0.80758655]
[1759410393426,1.13629937,119300.0,119290.0,0.4817879]
[1759410394029,1.22007977,119300.0,119290.0,0.80758655]
[1759410394328,1.54587842,119300.0,119290.0,0.4817879]
[1759410394631,1.54587842,119300.0,119290.0,0.1209879]
[1759410395828,1.54587842,119300.0,119290.0,0.1199879]
[1759410396024,1.54587842,119300.0,119290.0,0.1229879]
[1759410396530,1.54587842,119300.0,119290.0,0.1209879]
[1759410396730,0.89428112,119300.0,119290.0,0.1209879]
[1759410396927,1.54587842,119300.0,119290.0,0.1209879]
[1759410397322,1.90667842,119300.0,119290.0,0.1199879]
[1759410397519,1.90867842,119300.0,119290.0,0.1199879]
[1759410398024,1.90867842,119300.0,119290.0,0.0967279]
[1759410401827,1.90867842,119300.0,119290.0,0.1183879]
[1759410402634,1.90867842,119300.0,119290.0,0.0967279]
[1759410403531,1.90867842,119300.0,119290.0,0.1183879]
[1759410404132,1.15095842,119300.0,119290.0,0.1183879]
[1759410404336,0.49936202,119300.0,119290.0,0.1183879]
[1759410404525,0.79015932,119300.0,119290.0,0.1183879]
[1759410404832,1.54791932,119300.0,119290.0,0.4791879]
[1759410405234,1.22212067,119300.0,119290.0,0.80498655]
[1759410405734,0.46436067,119300.0,119290.0,0.80498655]
[1759410405930,0.002,119300.0,119290.0,1.59031009]
[1759410406130,0.0837713,119320.0,119310.0,0.1183142]
[1759410406333,1.16732995,119320.0,119310.0,0.1183142]
[1759410406829,1.52812995,119320.0,119310.0,0.03454]